Cogmind - Beta 14 @@@ ROGUE MODE // 2024.10.01 @ 18:39:13 Player: N.W.L Result: Destroyed by GX-E39(R) with Subdweller Machine Gun Performance ------------- Evolutions (0) 0 Regions Visited (3) 600 Robots Destroyed (22) 110 Value Destroyed (400) 400 Prototype IDs (0) 0 Alien Tech Used (0) 0 Bonus (0) 0 TOTAL SCORE: 1110 Bonus ------- None Cogmind --------- Core Integrity 0/250 Matter 221/300 Energy 96/100 System Corruption 0% Temperature Cool (0) Movement Treading (160) Location -10/Subcaves Parts ------- > --- POWER (1) -------- (None) > --- PROPULSION (2) --- Light Treads > --- UTILITY (2) ------ (None) > --- WEAPON (2) ------- (None) > --- INVENTORY (5) ---- Cargo Storage Unit Peak State ------------ > --- POWER ------------ Ion Engine > --- PROPULSION ------- Light Treads Light Treads > --- UTILITY ---------- Cargo Storage Unit > --- WEAPON ----------- Shotgun Shotgun > --- INVENTORY -------- Light Treads Compact Wheel Cargo Storage Unit Cargo Storage Unit Cargo Storage Unit Cargo Storage Unit Shotgun Shotgun Mining Laser Mining Laser Mining Laser Mining Laser EMP Trap EMP Trap EMP Trap EMP Trap EMP Trap [Rating: 11] Favorites ----------- Power Ion Engine Engine Ion Engine Propulsion Light Treads Treads Light Treads Leg Aluminum Leg Wheel Compact Wheel Utility Cargo Storage Unit Storage Cargo Storage Unit Weapon Shotgun Energy Gun Medium Laser Ballistic Gun Shotgun Launcher Grenade Launcher Special Weapon Mining Laser Build | -11 -10 -10 -10 ------- Run | Yrd Mat Min Sub Slots Evolved . | . . . . Power . | . . . . Propulsion . | . . . . Utility . | . . . . Weapon . | . . . . Parts Attached 22 | . 16 3 3 Power 1 | . 1 . . Engine 1 | . 1 . . Core . | . . . . Reactor . | . . . . Propulsion 5 | . 4 . 1 Treads 3 | . 2 . 1 Leg . | . . . . Wheel 2 | . 2 . . Hover . | . . . . Flight . | . . . . Utility 2 | . 2 . . Device . | . . . . Storage 2 | . 2 . . Processor . | . . . . Hackware . | . . . . Protection . | . . . . Artifact . | . . . . Weapon 14 | . 9 3 2 Energy Gun 1 | . 1 . . Energy Cannon . | . . . . Ballistic Gun 7 | . 4 1 2 Ballistic Cannon . | . . . . Launcher 4 | . 4 . . Special Weapon 2 | . . 2 . Impact Weapon . | . . . . Slashing Weapon . | . . . . Piercing Weapon . | . . . . Special Melee Weapon . | . . . . Unidentified Prototypes . | . . . . Parts Lost 4 | . 2 . 2 Power 2 | . 1 . 1 Propulsion . | . . . . Utility . | . . . . Weapon 2 | . 1 . 1 Highest Loss Streak 2 | . 1 . 2 To Critical Strikes . | . . . . Average Slot Usage (%) 82 | . 82 81 84 Engine 12 | . 12 14 13 Treads 15 | . 6 28 28 Wheel 12 | . 21 . . Storage 14 | . 14 14 14 Energy Gun 6 | . 10 . . Ballistic Gun 19 | . 16 22 28 Peak Build Rating 11 | . 10 11 11 Average Rating 9 | . 8 10 10 On Entrance 7 | 6 6 9 9 Naked Turns 3 | . 1 . 2 Heaviest Build 151 | 11 151 151 151 Greatest Support 40 | 20 40 40 40 Greatest Overweight (x) 48 | . 48 3 3 Average Overweight (x) 7 | . 11 3 2 Largest Inventory Capacity 30 | . 30 30 30 Average Capacity 29 | . 29 30 29 Most Carried 23 | . 18 22 23 Average Carried 17 | . 15 20 22 Final Capacity 30 | 8 30 30 5 Final Carried 21 | 6 17 21 2 Class Distribution -------------------- 100% | Hauler-Mutant Dominant Class ---------------- Hauler-Mutant | -10/Materials Hauler-Mutant | -10/Mines Hauler-Mutant | -10/Subcaves Resources | -11 -10 -10 -10 ----------- Run | Yrd Mat Min Sub Matter Collected 530 | 200 46 254 30 Remotely . | . . . . Salvage Created 572 | . 318 254 . Parts 46 | . 33 13 . Haulers Intercepted 1 | . 1 . . Recyclers Shooed 1 | . . 1 . Parts Field Recycled . | . . . . Retrieved Matter . | . . . . Parts Self-Destructed . | . . . . Prevented . | . . . . Kills | -11 -10 -10 -10 ------- Run | Yrd Mat Min Sub Combat Hostiles Destroyed 15 | . 12 3 . Guns 8 | . 5 3 . AOE 7 | . 7 . . Classes Destroyed 6 | . 5 1 . Builder 3 | . 3 . . Hauler 1 | . 1 . . Recycler 2 | . . 2 . Operator 1 | . 1 . . Swarmer 7 | . 6 1 . Grunt 8 | . 6 2 . Best Kill Streak 7 | . 7 2 . Combat Bots Only 3 | . 3 1 . Max Kills in Single Turn 2 | . 2 1 . Gunslinging . | . . . . Exploded 2 | . 2 . . Melee . | . . . . Uniques/NPCs Destroyed . | . . . . Combat | -11 -10 -10 -10 -------- Run | Yrd Mat Min Sub Hostile Shots Fired 83 | . 47 14 22 Missed 28 | . 17 5 6 Damage Taken 898 | . 414 110 374 Core 267 | . 101 9 157 Absorbed by Shields . | . . . . Core Remaining (%) 100 | 100 . . . Volleys Fired 57 | . 41 16 . Largest 2 | . 2 2 . Hottest 200 | . 70 200 . Shots Fired 93 | . 63 30 . Gun 73 | . 53 20 . Cannon . | . . . . Launcher 10 | . 10 . . Special 10 | . . 10 . Kinetic 43 | . 23 20 . Thermal 40 | . 30 10 . Explosive 10 | . 10 . . Electromagnetic . | . . . . Robot Hit Streak 13 | . 13 6 . Robot Miss Streak 5 | . 2 5 . Penetration Max . | . . . . Secondary Targets . | . . . . Shots Hit Robots 60 | . 41 19 . Core Hits 38 | . 27 11 . Critical Kills . | . . . . Critical Parts Destroyed . | . . . . Critical Strikes 3 | . 3 . . Burn 3 | . 3 . . Melee Attacks . | . . . . Impact . | . . . . Slashing . | . . . . Piercing . | . . . . Sneak Attacks . | . . . . Combat Hostiles . | . . . . Follow-up Attacks . | . . . . Damage Inflicted 1462 | . 1168 294 . Guns 658 | . 436 222 . Cannons . | . . . . Explosions 732 | . 732 . . Melee . | . . . . Ramming . | . . . . Kinetic 374 | . 152 222 . Thermal 356 | . 284 72 . Explosive 732 | . 732 . . Electromagnetic . | . . . . Impact . | . . . . Slashing . | . . . . Piercing . | . . . . Highest Corruption . | . . . . Average Corruption . | . . . . Corruption Purged . | . . . . Corruption Blocked . | . . . . Overload Shots . | . . . . Overflow Damage 26 | . 18 8 . Projectiles 8 | . . 8 . Explosions 18 | . 18 . . Melee . | . . . . Knockbacks . | . . . . Impact . | . . . . Kinetic . | . . . . Secondary . | . . . . Self-Inflicted Damage 99 | . 99 . . Shots 3 | . 3 . . Rammed . | . . . . Targets Rammed . | . . . . Kicked . | . . . . Crushed . | . . . . Highest Temperature 280 | . 130 280 . Average Temperature 73 | . 37 130 . Received Heat Transfer 198 | . 132 54 12 Effects 1 | . . 1 . Energy Bleed 1 | . . 1 . Siege Activations . | . . . . Robots Corrupted . | . . . . Combat Hostiles . | . . . . Parts Fried . | . . . . Impact Corruptions . | . . . . Robots Melted . | . . . . Combat Hostiles . | . . . . Parts Melted 2 | . 2 . . Heat Transferred 1149 | . 999 150 . Parts Sabotaged . | . . . . Parts Stolen . | . . . . Parts Stripped . | . . . . Power Chain Reactions . | . . . . Alert | -11 -10 -10 -10 ------- Run | Yrd Mat Min Sub Peak Influence 357 | . 357 198 . Initial 138 | . . 138 . Average 78 | . 87 63 . Maximum Alert Level 1 | . 1 . . Low Security (%) 83 | . 73 100 . Level 1 16 | . 26 . . Level 2 . | . . . . Level 3 . | . . . . Level 4 . | . . . . Level 5 . | . . . . High Security . | . . . . Max Security . | . . . . Squads Dispatched 4 | . 4 . . Investigation 3 | . 3 . . Extermination . | . . . . Reinforcement 1 | . 1 . . Assault . | . . . . Garrison . | . . . . Intercept . | . . . . Searches Triggered . | . . . . Construction Impeded . | . . . . Haulers Reinforced . | . . . . Active Scanning Responses . | . . . . Cargo Convoy Interrupts . | . . . . Stealth | -11 -10 -10 -10 --------- Run | Yrd Mat Min Sub Distress Signals 1 | . 1 . . Communications Jammed . | . . . . Distress Signals . | . . . . Times Spotted 32 | . 16 5 11 Peak Tracking Total 11 | . 4 3 11 Tactical Retreats 4 | . 2 2 . Traps | -11 -10 -10 -10 ------- Run | Yrd Mat Min Sub Traps Triggered 1 | . 1 . . Indirectly . | . . . . Trap Hack Attempts . | . . . . Triggered . | . . . . Disarmed . | . . . . Reprogrammed . | . . . . Reused . | . . . . Traps Extracted . | . . . . Installed . | . . . . Triggered . | . . . . Most Traps Carried 5 | . . 5 5 Machines | -11 -10 -10 -10 ---------- Run | Yrd Mat Min Sub Machines Disabled . | . . . . Max in Single Turn . | . . . . Machines Repaired . | . . . . Machines Dismantled . | . . . . Machines Sabotaged . | . . . . Overloaded Fab Kills . | . . . . Hacking | -11 -10 -10 -10 --------- Run | Yrd Mat Min Sub Machines Accessed 4 | . 4 . . Terminals 2 | . 2 . . Fabricators . | . . . . Repair Stations . | . . . . Recycling Units 2 | . 2 . . Scanalyzers . | . . . . Garrison Access . | . . . . Total Hacks 14 | . 14 . . Successful 5 | . 5 . . Failed 9 | . 9 . . Catastrophic . | . . . . Database Lockouts . | . . . . Manual 4 | . 4 . . Terminals 6 | . 6 . . Fabricators . | . . . . Repair Stations . | . . . . Recycling Units 8 | . 8 . . Scanalyzers . | . . . . Garrison Access . | . . . . Terminal Hacks 3 | . 3 . . Robot Analysis 2 | . 2 . . Zone Layout 1 | . 1 . . Fabricator Hacks . | . . . . Repair Station Hacks . | . . . . Recycling Unit Hacks . | . . . . Scanalyzer . | . . . . Garrison Access Hacks . | . . . . Unauthorized Hacks 2 | . 2 . . Terminals 1 | . 1 . . Skim 1 | . 1 . . Fabricators . | . . . . Repair Stations . | . . . . Recycling Units 1 | . 1 . . Tunnel 1 | . 1 . . Scanalyzers . | . . . . Garrison Access . | . . . . Data Cores Recovered . | . . . . Used . | . . . . Hacking Detections 4 | . 4 . . Full Trace Events 1 | . 1 . . Feedback Events . | . . . . Feedback Blocked . | . . . . Robot Schematics Acquired . | . . . . Robots Built . | . . . . Authchips . | . . . . Time . | . . . . Total Robot Build Rating . | . . . . Part Schematics Acquired . | . . . . Parts Built . | . . . . Authchips . | . . . . Time . | . . . . Total Part Build Rating . | . . . . Parts Repaired . | . . . . Time . | . . . . Parts Recycled . | . . . . Recycled Matter . | . . . . Retrieved Matter . | . . . . Retrieved Components . | . . . . Parts Scanalyzed . | . . . . Part Schematics Acquired . | . . . . Parts Damaged . | . . . . Bothacking | -11 -10 -10 -10 ------------ Run | Yrd Mat Min Sub Used RIF Installer . | . . . . Robots Hacked . | . . . . Non-combat . | . . . . Combat . | . . . . Robot Hacks Applied . | . . . . Relay Couplers Released . | . . . . Fabnet Peak Effective % . | . . . . Robots Rewired . | . . . . Allies Hacked . | . . . . Hacks Repelled . | . . . . Allies | -11 -10 -10 -10 -------- Run | Yrd Mat Min Sub Total Allies . | . . . . Largest Group . | . . . . Highest-Rated Group . | . . . . Highest-Rated Ally . | . . . . Total Orders . | . . . . Ally Attacks . | . . . . Total Damage . | . . . . Kills . | . . . . Allies Corrupted . | . . . . Allies Melted . | . . . . Intel | -11 -10 -10 -10 ------- Run | Yrd Mat Min Sub Robot Analysis Total 2 | . 2 . . Derelict Logs Recovered . | . . . . Drone Launches . | . . . . Drone Recoveries . | . . . . Exploration | -11 -10 -10 -10 ------------- Run | Yrd Mat Min Sub Turns Passed 3206 | . 1932 1091 183 Spaces Moved 542 | 1 272 230 39 Core 50 | . 49 . 1 Treads 376 | . 108 230 38 Legs 14 | 1 13 . . Wheels 102 | . 102 . . Hover . | . . . . Flight . | . . . . Fastest Speed 50 | 120 50 400 50 Average Speed 522 | 120 648 400 378 Slowest Speed 2450 | 120 2450 400 400 Overloaded Moves . | . . . . Propulsion Burnouts . | . . . . Robots Hopped . | . . . . Cave-ins Triggered . | . . . . Exploration Rate (%) 28 | 2 59 46 7 Regions Visited 3 Branch Regions 2 Pre-discovered Areas 1 | . 1 . . Known Exits Taken . | . . . . Unknown Exits Taken 3 | 1 1 1 . Scrap Searched . | . . . . Spaces Dug 14 | . 14 . . Terrain Destroyed 53 | . 52 1 . Melee . | . . . . Projectile 1 | . . 1 . AOE 52 | . 52 . . Terrain Rammed . | . . . . Walls Destroyed . | . . . . Machines Disabled . | . . . . Actions | -11 -10 -10 -10 --------- Run | Yrd Mat Min Sub Total 803 | . 377 353 73 Wait 156 | . 27 100 29 Move 539 | . 271 229 39 Hop . | . . . . Pick Up 27 | . 21 5 1 Fast Attach 7 | . 6 . 1 Attach 2 | . 1 1 . Detach . | . . . . Swap 13 | . 9 2 2 Drop 2 | . 1 . 1 Fire 57 | . 41 16 . Melee . | . . . . Ram . | . . . . Kick . | . . . . Crush . | . . . . Escape Stasis . | . . . . Rewire . | . . . . Trap . | . . . . Miscellaneous . | . . . . Route ------- -11/Scrapyard -10/Materials (discovered 3 exits: [*Mat] / [*Min x2]) -10/Mines (discovered 3 exits: [*Mat x2] / [*Sub]) -10/Subcaves History --------- Turn | Location | Event 1 | -11/Scrapyard | Discovered new exit (range 0) 1 | -11/Scrapyard | Entered Materials 308 | -10/Materials | Build established: Hauler-Mutant 558 | -10/Materials | Discovered new exit (range 9) 1439 | -10/Materials | Discovered new exit (range 16) 1462 | -10/Materials | Released all parts (5) 1785 | -10/Materials | Discovered new exit (range 14) 1933 | -10/Materials | Entered Mines 2009 | -10/Mines | Found a hidden stash of uninstalled traps 2122 | -10/Mines | Discovered new exit (range 6) 2182 | -10/Mines | Discovered new exit (range 6) 3006 | -10/Mines | Discovered new exit (range 5) 3024 | -10/Mines | Entered Subcaves 3142 | -10/Subcaves | Curiously followed by a Cobbler waking with a query about "LVR3C" 3192 | -10/Subcaves | Ambushed by swarm of Subdwellers 3192 | -10/Subcaves | Ambushed by Subdwellers from Twisted Machinery 3192 | -10/Subcaves | Ambushed by Subdwellers from Twisted Machinery 3192 | -10/Subcaves | Ambushed by Subdwellers from Twisted Machinery 3192 | -10/Subcaves | Ambushed by Subdwellers from Twisted Machinery 3193 | -10/Subcaves | Core integrity fell below 50% 3196 | -10/Subcaves | Core integrity fell below 20% 3201 | -10/Subcaves | Released all parts (4) 3207 | -10/Subcaves | Destroyed by GX-E39(R) with Subdweller Machine Gun Last Messages --------------- 03195_ GX-E39(R) emerges from the Twisted Machinery. 03196_ FT-3RA(g): "Sorry we're late! Had another grouchy Sub to deal with. Who's the new fellow?" 03196_ HV Slug penetrates JD-AN0(R). 03196_ HV Slug penetrates Wall. 03196_ U2-MI9(O) cries out in pain. 03196_ U2-MI9(O) destroyed. 03197_ Ion Engine destroyed. 03200_ HV Slug penetrates E5-B3M(R). 03201_ X6-SI4(g) destroyed. 03201_ Shotgun destroyed. 03201_ Released Shotgun. 03201_ Released Lgt. Treads. 03201_ Released Cargo Storage Unit. 03201_ Dropped Cargo Storage Unit. 03203_ Acquired Lgt. Treads. 03203_ FT-3RA(g) destroyed. 03203_ HV Slug penetrates E5-B3M(R). 03204_ Acquired 1 matter. 03205_ LD-F3L(h) destroyed. Map ----- +----------------------------------------------------+ | ???????????# #???????????????? | | ????????????# #???????????????? | | ????????????# #???????????????? | | ???????????????## ##??????????????? | | ???????????????# #??????????????? | | ???? ??????????## #??????????????? | | ???? ## ?????# ## #??????????????? | | ??? % ??### ###### #?????????????? | | ??? ## ##???####?????????????? | | ?????# ##???????????????????? | | ??????#% %#???????????????????? | | ??????### #???????????????????? | | ????????## % % ;; ??????????????????? | | ?????????## ; ??????????????????? | | ??????????## % #; ??????????????????? | | ???????????# # ??????????????????? | | ???????????# ###???????????????? | | ??????????# ##??????????????? | | ??????????# % % #??????????????? | | ??????????## ; ;##??????????????? | | ???????????#? ## #???????????????? | | ????????????###?# % ;##??????????????? | | ????????????????# #??????????????? | | ??????????## # ## #??????????????? | | ??????? ##?????????????? | | ?????? @!=#?????????????? | | ??????? % ###### &&[#?????????????? | | ??????? ###?????#RRR&&!#?????????????? | | ??????? ?????????# %|R=[#?????????????? | | ??????? ??????????#R%RRR##?????????????? | | ???????? ???????????# ![R;??????????????? | | ?????????????????????# R!#??????????????? | | ?????????????????????##% R""??????????????? | | ?????????????????????#;## ###?????????????? | | ???????????????????? #?# ???????????????? | | ???????????????????# ??# ???????????????? | | ???????????????????# ???# #??????????????? | | ???????????????????##??? % #??????????????? | | ????????????????????????# ##??????????????? | | ???????????????????????? #???????????????? | | ???????????????????????? ????????????????? | | ???????????????????????? ????????????????? | | ????????????????????????# ????????????????? | | ????????????????????????? ????????????????? | | ????????????????????????? ????????????????? | | ??????????????????????????????????????????? | | ??????????????????????????????????????????? | | ??????????????????????????????????????????? | | ??????????????????????????????????????????? | | ??????????????????????????????????????????? | +----------------------------------------------------+ Best States ------------- Heat Dissipation 25 Energy Generation 10 Energy Capacity 250 Matter Stores 300 Matter Capacity 300 Sight Range 16 Terrain Scan Density 10 Evasion (%) 45 Recoil Reduction 2 Item Schematics ----------------- None Robot Schematics ------------------ None Fabricated ------------ Nothing Alien Tech Used ----------------- None Achievements -------------- None Challenges ------------ None Game ------ Seed HeatThunderWings Manual? 0 Play Time 00:11:00 Cumulative 316.0 hours Start 2024.10.01 @ 18:25:28 End 2024.10.01 @ 18:39:13 Sessions 1 Manual Loads 0 Difficulty Rogue Special Mode None Game No. 152 Rogue 152 Adventurer 0 Explorer 0 Win Type - Total 9 Types 5/1/3/0/0/0/0/0/0 Lore% 80 Gallery% 87 Achievement% 73 Wizard Run 0 Options --------- Layout 0 ASCII 0 Keyboard 0 Movement Mouse Keybinds 0 Fullscreen 2 Font 12/Smallcaps Map View 83x54 Zoom Use 0% Tactical HUD 1 Map Filters NONE Filters NONE Steam 1 RUN: e19d2ef9-37d1-40f5-93c7-13e2f7bfa968